[Event "Titled Tuesday Blitz April 4 Late 2023"]
[White "Maksimovic, Bojan"]
[Black "Hansen, Sune Berg"]
[WhiteFideId "14408120"]
[BlackFideId "1400266"]
[WhiteElo "2468"]
[BlackElo "2712"]
[Result "1-0"]
[Round "08"]
[TimeControl "180+2"]
[Date "2023.04.04"]
[WhiteClock "0:01:19"]
[BlackClock "0:00:19"]

1. a3 {[%clk 0:02:59]}  e5 {[%clk 0:02:58]} 2. c4 {[%clk 0:02:59]}  g6 {[%clk 0:02:55]} 3. b4 {[%clk 0:02:58]}  Bg7 {[%clk 0:02:56]} 4. Bb2 {[%clk 0:02:59]}  d6 {[%clk 0:02:55]} 5. g3 {[%clk 0:03:00]}  f5 {[%clk 0:02:54]} 6. Bg2 {[%clk 0:03:00]}  Nf6 {[%clk 0:02:53]} 7. e3 {[%clk 0:03:01]}  O-O {[%clk 0:02:54]} 8. d3 {[%clk 0:03:02]}  Nc6 {[%clk 0:02:40]} 9. Ne2 {[%clk 0:03:02]}  Ne7 {[%clk 0:02:39]} 10. Nbc3 {[%clk 0:03:02]}  c6 {[%clk 0:02:38]} 11. O-O {[%clk 0:03:02]}  d5 {[%clk 0:02:37]} 12. cxd5 {[%clk 0:03:02]}  cxd5 {[%clk 0:02:36]} 13. Nb5 {[%clk 0:03:03]}  a6 {[%clk 0:02:32]} 14. Nbc3 {[%clk 0:02:59]}  b6 {[%clk 0:02:22]} 15. Rc1 {[%clk 0:02:59]}  Bb7 {[%clk 0:02:21]} 16. b5 {[%clk 0:02:52]}  a5 {[%clk 0:02:18]} 17. d4 {[%clk 0:02:51]}  e4 {[%clk 0:02:18]} 18. Na4 {[%clk 0:02:45]}  Qd6 {[%clk 0:02:15]} 19. Qd2 {[%clk 0:02:31]}  Rfc8 {[%clk 0:02:07]} 20. Rxc8+ {[%clk 0:02:31]}  Rxc8 {[%clk 0:02:06]} 21. Rc1 {[%clk 0:02:32]}  Rxc1+ {[%clk 0:02:05]} 22. Qxc1 {[%clk 0:02:33]}  Nd7 {[%clk 0:01:57]} 23. Nac3 {[%clk 0:02:28]}  Bf8 {[%clk 0:01:52]} 24. a4 {[%clk 0:02:27]}  Nc8 {[%clk 0:01:50]} 25. Nf4 {[%clk 0:02:25]}  Nf6 {[%clk 0:01:41]} 26. h4 {[%clk 0:02:23]}  Qc7 {[%clk 0:01:37]} 27. Bf1 {[%clk 0:02:22]}  Bb4 {[%clk 0:01:30]} 28. Nxe4 {[%clk 0:02:20]}  Qxc1 {[%clk 0:01:22]} 29. Nxf6+ {[%clk 0:02:20]}  Kf7 {[%clk 0:01:20]} 30. Bxc1 {[%clk 0:02:21]}  Kxf6 {[%clk 0:01:19]} 31. Bg2 {[%clk 0:02:21]}  Ne7 {[%clk 0:01:19]} 32. Nd3 {[%clk 0:02:21]}  Bd6 {[%clk 0:01:18]} 33. Kf1 {[%clk 0:02:21]}  h6 {[%clk 0:01:14]} 34. Ke2 {[%clk 0:02:22]}  g5 {[%clk 0:01:14]} 35. hxg5+ {[%clk 0:02:23]}  hxg5 {[%clk 0:01:14]} 36. Kd2 {[%clk 0:02:24]}  Bc8 {[%clk 0:01:05]} 37. Kc3 {[%clk 0:02:23]}  Kg6 {[%clk 0:01:01]} 38. Bf3 {[%clk 0:02:23]}  Be6 {[%clk 0:00:57]} 39. Kb3 {[%clk 0:02:23]}  Kf6 {[%clk 0:00:54]} 40. Ba3 {[%clk 0:02:23]}  Bxa3 {[%clk 0:00:52]} 41. Kxa3 {[%clk 0:02:24]}  Nc8 {[%clk 0:00:50]} 42. Kb3 {[%clk 0:02:20]}  Nd6 {[%clk 0:00:48]} 43. Ne5 {[%clk 0:02:21]}  Nc8 {[%clk 0:00:41]} 44. Kc3 {[%clk 0:02:21]}  Nd6 {[%clk 0:00:40]} 45. Bg2 {[%clk 0:02:19]}  Nc8 {[%clk 0:00:40]} 46. Bf1 {[%clk 0:02:20]}  Nd6 {[%clk 0:00:40]} 47. Bd3 {[%clk 0:02:21]}  Nc8 {[%clk 0:00:39]} 48. Kd2 {[%clk 0:02:21]}  Nd6 {[%clk 0:00:39]} 49. f3 {[%clk 0:02:21]}  g4 {[%clk 0:00:33]} 50. Ke2 {[%clk 0:01:46]}  Kg5 {[%clk 0:00:32]} 51. Kf2 {[%clk 0:01:46]}  Bc8 {[%clk 0:00:31]} 52. Be2 {[%clk 0:01:45]}  Be6 {[%clk 0:00:31]} 53. Nc6 {[%clk 0:01:45]}  Bd7 {[%clk 0:00:28]} 54. Bf1 {[%clk 0:01:43]}  gxf3 {[%clk 0:00:27]} 55. Kxf3 {[%clk 0:01:42]}  Ne4 {[%clk 0:00:26]} 56. Ne5 {[%clk 0:01:33]}  Be8 {[%clk 0:00:26]} 57. Kg2 {[%clk 0:01:20]}  Bh5 {[%clk 0:00:25]} 58. Nd7 {[%clk 0:01:20]}  Nd2 {[%clk 0:00:20]} 59. Nxb6 {[%clk 0:01:20]}  Bf3+ {[%clk 0:00:19]} 60. Kf2 {[%clk 0:01:20]}  Bd1 {[%clk 0:00:19]} 61. Bd3 {[%clk 0:01:19]} 1-0


[Site "https://www.chess.com"]

[Event "Titled Tuesday Blitz April 4 Late 2023"]
[White "Pakleza, Zbigniew"]
[Black "Moral Garcia, Serafin"]
[WhiteFideId "1119290"]
[BlackFideId "2201925"]
[WhiteElo "2410"]
[BlackElo "2274"]
[Result "1/2-1/2"]
[Round "08"]
[TimeControl "180+2"]
[Date "2023.04.04"]
[WhiteClock "0:00:16"]
[BlackClock "0:00:15"]

1. a3 {[%clk 0:03:00]}  Nf6 {[%clk 0:02:56]} 2. d4 {[%clk 0:02:58]}  b6 {[%clk 0:02:53]} 3. Nf3 {[%clk 0:02:56]}  Bb7 {[%clk 0:02:52]} 4. Bf4 {[%clk 0:02:57]}  e6 {[%clk 0:02:51]} 5. e3 {[%clk 0:02:57]}  c5 {[%clk 0:02:48]} 6. Nbd2 {[%clk 0:02:55]}  Be7 {[%clk 0:02:45]} 7. h3 {[%clk 0:02:50]}  O-O {[%clk 0:02:44]} 8. Bd3 {[%clk 0:02:50]}  d5 {[%clk 0:02:43]} 9. O-O {[%clk 0:02:49]}  Nc6 {[%clk 0:02:32]} 10. c3 {[%clk 0:02:45]}  Bd6 {[%clk 0:02:31]} 11. Qe2 {[%clk 0:02:42]}  Re8 {[%clk 0:02:30]} 12. Ne5 {[%clk 0:02:31]}  Qc7 {[%clk 0:02:26]} 13. Ndf3 {[%clk 0:02:31]}  Bxe5 {[%clk 0:02:17]} 14. Nxe5 {[%clk 0:02:26]}  Nxe5 {[%clk 0:02:17]} 15. Bxe5 {[%clk 0:02:19]}  Qe7 {[%clk 0:02:17]} 16. Rad1 {[%clk 0:02:08]}  Nd7 {[%clk 0:02:16]} 17. Bh2 {[%clk 0:02:02]}  e5 {[%clk 0:02:14]} 18. Bb5 {[%clk 0:01:54]}  exd4 {[%clk 0:01:52]} 19. cxd4 {[%clk 0:01:55]}  c4 {[%clk 0:01:53]} 20. Qf3 {[%clk 0:01:43]}  a6 {[%clk 0:01:48]} 21. Bxc4 {[%clk 0:01:41]}  dxc4 {[%clk 0:01:29]} 22. Qxb7 {[%clk 0:01:42]}  b5 {[%clk 0:01:28]} 23. e4 {[%clk 0:01:34]}  Qe6 {[%clk 0:01:07]} 24. d5 {[%clk 0:01:20]}  Qe7 {[%clk 0:01:05]} 25. Rfe1 {[%clk 0:01:13]}  Ne5 {[%clk 0:00:53]} 26. Qxe7 {[%clk 0:01:12]}  Rxe7 {[%clk 0:00:53]} 27. Bxe5 {[%clk 0:01:11]}  Rxe5 {[%clk 0:00:53]} 28. f4 {[%clk 0:01:09]}  Ree8 {[%clk 0:00:54]} 29. e5 {[%clk 0:01:06]}  Kf8 {[%clk 0:00:53]} 30. d6 {[%clk 0:01:04]}  Red8 {[%clk 0:00:49]} 31. f5 {[%clk 0:00:59]}  Ra7 {[%clk 0:00:39]} 32. e6 {[%clk 0:00:56]}  Ke8 {[%clk 0:00:38]} 33. g4 {[%clk 0:00:47]}  a5 {[%clk 0:00:37]} 34. Re4 {[%clk 0:00:46]}  fxe6 {[%clk 0:00:26]} 35. fxe6 {[%clk 0:00:45]}  Ra6 {[%clk 0:00:26]} 36. Red4 {[%clk 0:00:29]}  b4 {[%clk 0:00:25]} 37. axb4 {[%clk 0:00:12]}  axb4 {[%clk 0:00:25]} 38. Rxc4 {[%clk 0:00:02]}  Raxd6 {[%clk 0:00:25]} 39. Rxd6 {[%clk 0:00:02]}  Rxd6 {[%clk 0:00:25]} 40. Rxb4 {[%clk 0:00:03]}  Rxe6 {[%clk 0:00:23]} 41. Kf2 {[%clk 0:00:04]}  Kf7 {[%clk 0:00:20]} 42. Rb7+ {[%clk 0:00:04]}  Kf6 {[%clk 0:00:20]} 43. b4 {[%clk 0:00:03]}  Rc6 {[%clk 0:00:19]} 44. Kg3 {[%clk 0:00:02]}  Rc3+ {[%clk 0:00:19]} 45. Kg2 {[%clk 0:00:03]}  Rb3 {[%clk 0:00:19]} 46. b5 {[%clk 0:00:02]}  Kg6 {[%clk 0:00:19]} 47. b6 {[%clk 0:00:03]}  h5 {[%clk 0:00:19]} 48. gxh5+ {[%clk 0:00:02]}  Kxh5 {[%clk 0:00:19]} 49. Rb8 {[%clk 0:00:02]}  Kg6 {[%clk 0:00:19]} 50. Kh2 {[%clk 0:00:02]}  Kh7 {[%clk 0:00:19]} 51. h4 {[%clk 0:00:02]}  Kg6 {[%clk 0:00:19]} 52. Kg2 {[%clk 0:00:02]}  Kh5 {[%clk 0:00:19]} 53. b7 {[%clk 0:00:02]}  Kg6 {[%clk 0:00:19]} 54. Kf2 {[%clk 0:00:03]}  Kh7 {[%clk 0:00:17]} 55. h5 {[%clk 0:00:03]}  Rb5 {[%clk 0:00:16]} 56. Ke3 {[%clk 0:00:04]}  Rb3+ {[%clk 0:00:16]} 57. Kd4 {[%clk 0:00:05]}  Rb1 {[%clk 0:00:15]} 58. Kc5 {[%clk 0:00:05]}  Rb2 {[%clk 0:00:15]} 59. Kd6 {[%clk 0:00:05]}  Rb1 {[%clk 0:00:15]} 60. Ke6 {[%clk 0:00:06]}  Rb2 {[%clk 0:00:14]} 61. Kd7 {[%clk 0:00:07]}  Rb1 {[%clk 0:00:14]} 62. Kc7 {[%clk 0:00:07]}  Rc1+ {[%clk 0:00:14]} 63. Kd6 {[%clk 0:00:08]}  Rb1 {[%clk 0:00:14]} 64. Ke5 {[%clk 0:00:09]}  Rb2 {[%clk 0:00:14]} 65. Kd4 {[%clk 0:00:09]}  Rb1 {[%clk 0:00:14]} 66. Kc3 {[%clk 0:00:09]}  Rb6 {[%clk 0:00:14]} 67. Kc4 {[%clk 0:00:09]}  Rb1 {[%clk 0:00:14]} 68. Kc5 {[%clk 0:00:10]}  Rb2 {[%clk 0:00:14]} 69. Kd5 {[%clk 0:00:10]}  Rb1 {[%clk 0:00:14]} 70. Kc6 {[%clk 0:00:10]}  Rc1+ {[%clk 0:00:15]} 71. Kd6 {[%clk 0:00:10]}  Rd1+ {[%clk 0:00:14]} 72. Ke6 {[%clk 0:00:11]}  Rb1 {[%clk 0:00:14]} 73. Kf7 {[%clk 0:00:11]}  Rf1+ {[%clk 0:00:15]} 74. Ke7 {[%clk 0:00:11]}  Rb1 {[%clk 0:00:15]} 75. Kd7 {[%clk 0:00:12]}  Rb2 {[%clk 0:00:15]} 76. Ke6 {[%clk 0:00:12]}  Rb1 {[%clk 0:00:15]} 77. Kf5 {[%clk 0:00:12]}  Rf1+ {[%clk 0:00:14]} 78. Kg4 {[%clk 0:00:12]}  Rb1 {[%clk 0:00:15]} 79. Kf3 {[%clk 0:00:13]}  Rb2 {[%clk 0:00:15]} 80. Ke4 {[%clk 0:00:13]}  Rb1 {[%clk 0:00:15]} 81. Kd3 {[%clk 0:00:14]}  Rb6 {[%clk 0:00:14]} 82. Kc2 {[%clk 0:00:13]}  Rb5 {[%clk 0:00:14]} 83. Kc3 {[%clk 0:00:14]}  Rb6 {[%clk 0:00:14]} 84. Kc4 {[%clk 0:00:14]}  Rb1 {[%clk 0:00:15]} 85. Kd5 {[%clk 0:00:15]}  Rb2 {[%clk 0:00:14]} 86. Kc5 {[%clk 0:00:15]}  Rb1 {[%clk 0:00:14]} 87. Kc6 {[%clk 0:00:16]}  Rc1+ {[%clk 0:00:15]} 88. Kd6 {[%clk 0:00:16]} 1/2-1/2


[Site "https://www.chess.com"]

[Event "Titled Tuesday Blitz April 4 Late 2023"]
[White "Ortega Amarelle, Mariano"]
[Black "Bolourchifard, Farzad"]
[WhiteFideId "3504301"]
[BlackFideId "12510084"]
[WhiteElo "2406"]
[BlackElo "2317"]
[Result "0-1"]
[Round "08"]
[TimeControl "180+2"]
[Date "2023.04.04"]
[WhiteClock "0:00:10"]
[BlackClock "0:00:20"]

1. e4 {[%clk 0:03:00]}  e5 {[%clk 0:02:58]} 2. Nf3 {[%clk 0:02:57]}  Nc6 {[%clk 0:02:58]} 3. Nc3 {[%clk 0:02:56]}  Nf6 {[%clk 0:02:58]} 4. d4 {[%clk 0:02:56]}  exd4 {[%clk 0:02:58]} 5. Nxd4 {[%clk 0:02:57]}  Bb4 {[%clk 0:02:58]} 6. Nxc6 {[%clk 0:02:56]}  bxc6 {[%clk 0:02:59]} 7. Bd3 {[%clk 0:02:56]}  d5 {[%clk 0:02:59]} 8. exd5 {[%clk 0:02:57]}  cxd5 {[%clk 0:03:00]} 9. O-O {[%clk 0:02:57]}  O-O {[%clk 0:03:01]} 10. Bg5 {[%clk 0:02:57]}  c6 {[%clk 0:03:01]} 11. Qf3 {[%clk 0:02:56]}  Bd6 {[%clk 0:03:00]} 12. h3 {[%clk 0:02:45]}  Rb8 {[%clk 0:03:00]} 13. b3 {[%clk 0:02:44]}  Be5 {[%clk 0:02:53]} 14. Bd2 {[%clk 0:02:41]}  h6 {[%clk 0:02:52]} 15. Rae1 {[%clk 0:02:41]}  Bd6 {[%clk 0:02:47]} 16. Bf4 {[%clk 0:02:41]}  Be6 {[%clk 0:02:44]} 17. Na4 {[%clk 0:02:37]}  c5 {[%clk 0:02:35]} 18. Rd1 {[%clk 0:02:23]}  Re8 {[%clk 0:02:22]} 19. Rfe1 {[%clk 0:02:22]}  Qc7 {[%clk 0:02:13]} 20. Bxd6 {[%clk 0:02:19]}  Qxd6 {[%clk 0:02:13]} 21. c4 {[%clk 0:01:57]}  d4 {[%clk 0:02:11]} 22. Qg3 {[%clk 0:01:47]}  Qxg3 {[%clk 0:01:54]} 23. fxg3 {[%clk 0:01:48]}  Rbc8 {[%clk 0:01:50]} 24. g4 {[%clk 0:01:25]}  Bd7 {[%clk 0:01:50]} 25. Nb2 {[%clk 0:01:25]}  Bc6 {[%clk 0:01:41]} 26. Bf5 {[%clk 0:01:23]}  Rcd8 {[%clk 0:01:26]} 27. Kf2 {[%clk 0:01:20]}  Be4 {[%clk 0:01:16]} 28. Nd3 {[%clk 0:01:08]}  Bxd3 {[%clk 0:01:15]} 29. Bxd3 {[%clk 0:01:05]}  a5 {[%clk 0:01:14]} 30. Rxe8+ {[%clk 0:00:46]}  Rxe8 {[%clk 0:01:15]} 31. Re1 {[%clk 0:00:46]}  Rxe1 {[%clk 0:01:14]} 32. Kxe1 {[%clk 0:00:47]}  Kf8 {[%clk 0:01:14]} 33. Kd2 {[%clk 0:00:42]}  Ke7 {[%clk 0:01:11]} 34. a3 {[%clk 0:00:43]}  Kd6 {[%clk 0:01:10]} 35. Bf5 {[%clk 0:00:33]}  g6 {[%clk 0:01:07]} 36. Bd3 {[%clk 0:00:30]}  Ke5 {[%clk 0:01:07]} 37. g3 {[%clk 0:00:30]}  Ne4+ {[%clk 0:00:46]} 38. Bxe4 {[%clk 0:00:27]}  Kxe4 {[%clk 0:00:47]} 39. Ke2 {[%clk 0:00:27]}  f6 {[%clk 0:00:27]} 40. h4 {[%clk 0:00:23]}  h5 {[%clk 0:00:26]} 41. gxh5 {[%clk 0:00:22]}  gxh5 {[%clk 0:00:26]} 42. Kd2 {[%clk 0:00:13]}  f5 {[%clk 0:00:24]} 43. Ke2 {[%clk 0:00:13]}  d3+ {[%clk 0:00:23]} 44. Kd2 {[%clk 0:00:13]}  Kd4 {[%clk 0:00:23]} 45. a4 {[%clk 0:00:11]}  Ke4 {[%clk 0:00:24]} 46. Ke1 {[%clk 0:00:10]}  Ke3 {[%clk 0:00:20]} 47. Kd1 {[%clk 0:00:10]}  Ke4 {[%clk 0:00:15]} 48. Kd2 {[%clk 0:00:10]}  Kd4 {[%clk 0:00:16]} 49. Ke1 {[%clk 0:00:08]}  Kc3 {[%clk 0:00:16]} 50. Kd1 {[%clk 0:00:07]}  Kxb3 {[%clk 0:00:16]} 51. Kd2 {[%clk 0:00:08]}  Kxc4 {[%clk 0:00:17]} 52. Ke3 {[%clk 0:00:09]}  Kc3 {[%clk 0:00:17]} 53. Kf4 {[%clk 0:00:09]}  d2 {[%clk 0:00:18]} 54. Kxf5 {[%clk 0:00:09]}  d1=Q {[%clk 0:00:19]} 55. Kg5 {[%clk 0:00:10]}  Qg4+ {[%clk 0:00:20]} 0-1


[Site "https://www.chess.com"]

[Event "Titled Tuesday Blitz April 4 Late 2023"]
[White "Jaracz, Pawel"]
[Black "Francisco Guecamburu, Candela Be"]
[WhiteFideId "1102222"]
[BlackFideId "160911"]
[WhiteElo "2438"]
[BlackElo "2326"]
[Result "1-0"]
[Round "08"]
[TimeControl "180+2"]
[Date "2023.04.04"]
[WhiteClock "0:00:05"]
[BlackClock "0:00:06"]

1. d4 {[%clk 0:03:00]}  Nf6 {[%clk 0:02:56]} 2. Nf3 {[%clk 0:03:00]}  d5 {[%clk 0:02:52]} 3. Bf4 {[%clk 0:02:59]}  c5 {[%clk 0:02:51]} 4. e3 {[%clk 0:02:59]}  Nc6 {[%clk 0:02:51]} 5. c3 {[%clk 0:02:57]}  Qb6 {[%clk 0:02:50]} 6. Qc1 {[%clk 0:02:55]}  Bf5 {[%clk 0:02:45]} 7. Nbd2 {[%clk 0:02:55]}  h6 {[%clk 0:02:44]} 8. Be2 {[%clk 0:02:55]}  e6 {[%clk 0:02:45]} 9. O-O {[%clk 0:02:54]}  Be7 {[%clk 0:02:45]} 10. Ne5 {[%clk 0:02:50]}  O-O {[%clk 0:02:44]} 11. h3 {[%clk 0:02:43]}  Rac8 {[%clk 0:02:43]} 12. Nb3 {[%clk 0:02:36]}  cxd4 {[%clk 0:02:40]} 13. exd4 {[%clk 0:02:36]}  a5 {[%clk 0:02:30]} 14. Nxc6 {[%clk 0:02:28]}  Rxc6 {[%clk 0:02:28]} 15. Nd2 {[%clk 0:02:22]}  Nd7 {[%clk 0:02:18]} 16. Nf3 {[%clk 0:02:20]}  a4 {[%clk 0:02:17]} 17. a3 {[%clk 0:02:20]}  Qa5 {[%clk 0:02:11]} 18. Qd2 {[%clk 0:02:12]}  Be4 {[%clk 0:02:06]} 19. Rae1 {[%clk 0:02:08]}  Bxf3 {[%clk 0:02:01]} 20. Bxf3 {[%clk 0:02:09]}  Nb6 {[%clk 0:02:00]} 21. Be2 {[%clk 0:01:56]}  Bf6 {[%clk 0:01:58]} 22. Bd3 {[%clk 0:01:54]}  Nc4 {[%clk 0:01:56]} 23. Qe2 {[%clk 0:01:54]}  Qb6 {[%clk 0:01:47]} 24. Rb1 {[%clk 0:01:51]}  Qd8 {[%clk 0:01:41]} 25. g3 {[%clk 0:01:44]}  Bg5 {[%clk 0:01:37]} 26. Bxg5 {[%clk 0:01:37]}  Qxg5 {[%clk 0:01:38]} 27. Kg2 {[%clk 0:01:18]}  h5 {[%clk 0:01:11]} 28. f4 {[%clk 0:01:13]}  Qh6 {[%clk 0:01:10]} 29. g4 {[%clk 0:01:10]}  g6 {[%clk 0:01:03]} 30. Kg3 {[%clk 0:01:04]}  f5 {[%clk 0:00:55]} 31. Bxc4 {[%clk 0:00:56]}  dxc4 {[%clk 0:00:55]} 32. g5 {[%clk 0:00:56]}  Qg7 {[%clk 0:00:51]} 33. Rfe1 {[%clk 0:00:55]}  Qd7 {[%clk 0:00:43]} 34. Qf1 {[%clk 0:00:47]}  Ra8 {[%clk 0:00:41]} 35. Re5 {[%clk 0:00:47]}  Raa6 {[%clk 0:00:41]} 36. Rbe1 {[%clk 0:00:47]}  Rab6 {[%clk 0:00:40]} 37. R1e2 {[%clk 0:00:44]}  Rd6 {[%clk 0:00:35]} 38. Rd2 {[%clk 0:00:32]}  Rbc6 {[%clk 0:00:22]} 39. Qd1 {[%clk 0:00:29]}  Kf7 {[%clk 0:00:21]} 40. Qxa4 {[%clk 0:00:29]}  Rd5 {[%clk 0:00:20]} 41. Rde2 {[%clk 0:00:25]}  Qc7 {[%clk 0:00:06]} 42. Qa8 {[%clk 0:00:21]}  Rd8 {[%clk 0:00:06]} 43. Qa4 {[%clk 0:00:19]}  Rd5 {[%clk 0:00:06]} 44. Rxd5 {[%clk 0:00:17]}  exd5 {[%clk 0:00:06]} 45. Qb5 {[%clk 0:00:17]}  Rd6 {[%clk 0:00:03]} 46. Re5 {[%clk 0:00:17]}  Qd7 {[%clk 0:00:02]} 47. Qc5 {[%clk 0:00:15]}  b6 {[%clk 0:00:02]} 48. Qb4 {[%clk 0:00:14]}  Rc6 {[%clk 0:00:02]} 49. a4 {[%clk 0:00:14]}  Rd6 {[%clk 0:00:03]} 50. h4 {[%clk 0:00:12]}  Rc6 {[%clk 0:00:02]} 51. Kf3 {[%clk 0:00:13]}  Rd6 {[%clk 0:00:03]} 52. Ke3 {[%clk 0:00:12]}  Re6 {[%clk 0:00:03]} 53. Qb5 {[%clk 0:00:08]}  Qxb5 {[%clk 0:00:02]} 54. axb5 {[%clk 0:00:08]}  Rd6 {[%clk 0:00:01]} 55. Kd2 {[%clk 0:00:08]}  Rd7 {[%clk 0:00:02]} 56. Kc2 {[%clk 0:00:08]}  Rd8 {[%clk 0:00:02]} 57. b3 {[%clk 0:00:07]}  cxb3+ {[%clk 0:00:03]} 58. Kxb3 {[%clk 0:00:08]}  Rd7 {[%clk 0:00:04]} 59. c4 {[%clk 0:00:08]}  dxc4+ {[%clk 0:00:04]} 60. Kxc4 {[%clk 0:00:08]}  Rc7+ {[%clk 0:00:05]} 61. Kd5 {[%clk 0:00:07]}  Rd7+ {[%clk 0:00:06]} 62. Kc6 {[%clk 0:00:07]}  Rxd4 {[%clk 0:00:06]} 63. Kxb6 {[%clk 0:00:06]}  Rxf4 {[%clk 0:00:07]} 64. Kc6 {[%clk 0:00:05]}  Rxh4 {[%clk 0:00:07]} 65. b6 {[%clk 0:00:06]}  Rc4+ {[%clk 0:00:07]} 66. Rc5 {[%clk 0:00:06]}  Rb4 {[%clk 0:00:06]} 67. Rb5 {[%clk 0:00:06]}  Rc4+ {[%clk 0:00:06]} 68. Kd5 {[%clk 0:00:03]}  Rc8 {[%clk 0:00:03]} 69. b7 {[%clk 0:00:03]}  Rb8 {[%clk 0:00:03]} 70. Kd6 {[%clk 0:00:04]}  f4 {[%clk 0:00:01]} 71. Rb4 {[%clk 0:00:03]}  Rd8+ {[%clk 0:00:01]} 72. Kc7 {[%clk 0:00:03]}  Re8 {[%clk 0:00:02]} 73. Rxf4+ {[%clk 0:00:03]}  Kg7 {[%clk 0:00:03]} 74. b8=Q {[%clk 0:00:03]}  Rxb8 {[%clk 0:00:04]} 75. Kxb8 {[%clk 0:00:04]}  Kg8 {[%clk 0:00:04]} 76. Kc7 {[%clk 0:00:05]}  Kg7 {[%clk 0:00:05]} 77. Kd6 {[%clk 0:00:05]}  h4 {[%clk 0:00:06]} 78. Rxh4 {[%clk 0:00:05]} 1-0


[Site "https://www.chess.com"]

[Event "Titled Tuesday Blitz April 4 Late 2023"]
[White "Skvortsov, Andrei"]
[Black "koncheto"]
[WhiteFideId "24108600"]
[WhiteElo "2259"]
[BlackElo "2541"]
[Result "0-1"]
[Round "08"]
[TimeControl "180+2"]
[Date "2023.04.04"]
[WhiteClock "0:00:17"]
[BlackClock "0:00:07"]

1. d4 {[%clk 0:03:00]}  Nf6 {[%clk 0:02:58]} 2. c4 {[%clk 0:02:58]}  e6 {[%clk 0:02:59]} 3. Nc3 {[%clk 0:02:56]}  c5 {[%clk 0:02:59]} 4. d5 {[%clk 0:02:55]}  exd5 {[%clk 0:02:59]} 5. cxd5 {[%clk 0:02:56]}  d6 {[%clk 0:03:00]} 6. Nf3 {[%clk 0:02:54]}  g6 {[%clk 0:03:01]} 7. e4 {[%clk 0:02:55]}  a6 {[%clk 0:03:01]} 8. Bg5 {[%clk 0:02:39]}  Bg7 {[%clk 0:02:45]} 9. Bd3 {[%clk 0:02:36]}  Bg4 {[%clk 0:02:44]} 10. h3 {[%clk 0:02:30]}  Bxf3 {[%clk 0:02:44]} 11. Qxf3 {[%clk 0:02:22]}  Nbd7 {[%clk 0:02:44]} 12. Qe3 {[%clk 0:02:17]}  b5 {[%clk 0:02:23]} 13. O-O {[%clk 0:02:16]}  O-O {[%clk 0:02:16]} 14. f4 {[%clk 0:02:10]}  h6 {[%clk 0:02:08]} 15. Bh4 {[%clk 0:02:05]}  Nxd5 {[%clk 0:02:03]} 16. Bxd8 {[%clk 0:01:46]}  Nxe3 {[%clk 0:02:02]} 17. Be7 {[%clk 0:01:45]}  Rfe8 {[%clk 0:01:50]} 18. Bxd6 {[%clk 0:01:41]}  Nxf1 {[%clk 0:01:49]} 19. Kxf1 {[%clk 0:01:39]}  c4 {[%clk 0:01:42]} 20. Bc2 {[%clk 0:01:35]}  Rad8 {[%clk 0:01:34]} 21. e5 {[%clk 0:01:32]}  Bf8 {[%clk 0:01:24]} 22. Ne4 {[%clk 0:01:23]}  Bxd6 {[%clk 0:01:15]} 23. Nxd6 {[%clk 0:01:22]}  Re7 {[%clk 0:01:15]} 24. Rd1 {[%clk 0:01:19]}  Nc5 {[%clk 0:01:15]} 25. Rd5 {[%clk 0:01:15]}  Nb7 {[%clk 0:01:11]} 26. a4 {[%clk 0:01:06]}  Nxd6 {[%clk 0:01:09]} 27. exd6 {[%clk 0:01:07]}  Red7 {[%clk 0:01:07]} 28. axb5 {[%clk 0:01:07]}  axb5 {[%clk 0:01:06]} 29. Rxb5 {[%clk 0:01:05]}  Rxd6 {[%clk 0:01:06]} 30. Rc5 {[%clk 0:01:04]}  Rd4 {[%clk 0:01:03]} 31. g3 {[%clk 0:01:03]}  Rb8 {[%clk 0:01:01]} 32. Ke2 {[%clk 0:01:01]}  Rbd8 {[%clk 0:00:33]} 33. Ke3 {[%clk 0:00:59]}  Kg7 {[%clk 0:00:29]} 34. h4 {[%clk 0:00:51]}  Rd2 {[%clk 0:00:21]} 35. Rxc4 {[%clk 0:00:49]}  Rg2 {[%clk 0:00:21]} 36. Kf3 {[%clk 0:00:48]}  Rdd2 {[%clk 0:00:22]} 37. Be4 {[%clk 0:00:47]}  Rxb2 {[%clk 0:00:15]} 38. f5 {[%clk 0:00:43]}  gxf5 {[%clk 0:00:10]} 39. Bxf5 {[%clk 0:00:39]}  Rgf2+ {[%clk 0:00:08]} 40. Kg4 {[%clk 0:00:38]}  Rb3 {[%clk 0:00:08]} 41. Be4 {[%clk 0:00:37]}  Re2 {[%clk 0:00:08]} 42. Bf3 {[%clk 0:00:33]}  Ree3 {[%clk 0:00:08]} 43. Bd5 {[%clk 0:00:23]}  Rxg3+ {[%clk 0:00:07]} 44. Kf4 {[%clk 0:00:24]}  h5 {[%clk 0:00:05]} 45. Rc7 {[%clk 0:00:21]}  Rg4+ {[%clk 0:00:04]} 46. Ke5 {[%clk 0:00:20]}  Re3+ {[%clk 0:00:04]} 47. Kd6 {[%clk 0:00:20]}  Rf4 {[%clk 0:00:03]} 48. Ra7 {[%clk 0:00:18]}  Rh3 {[%clk 0:00:02]} 49. Ke5 {[%clk 0:00:18]}  Rhxh4 {[%clk 0:00:03]} 50. Ra1 {[%clk 0:00:17]}  Rf6 {[%clk 0:00:02]} 51. Rg1+ {[%clk 0:00:17]}  Rg4 {[%clk 0:00:03]} 52. Rh1 {[%clk 0:00:17]}  Rg5+ {[%clk 0:00:03]} 53. Ke4 {[%clk 0:00:17]}  Rff5 {[%clk 0:00:03]} 54. Bc4 {[%clk 0:00:17]}  Kf6 {[%clk 0:00:03]} 55. Be2 {[%clk 0:00:17]}  Rg4+ {[%clk 0:00:04]} 56. Ke3 {[%clk 0:00:16]}  Re5+ {[%clk 0:00:04]} 57. Kd3 {[%clk 0:00:17]}  Rgg5 {[%clk 0:00:03]} 58. Rf1+ {[%clk 0:00:16]}  Kg6 {[%clk 0:00:03]} 59. Rh1 {[%clk 0:00:17]}  Rd5+ {[%clk 0:00:04]} 60. Kc3 {[%clk 0:00:16]}  f5 {[%clk 0:00:04]} 61. Bc4 {[%clk 0:00:14]}  Rg3+ {[%clk 0:00:02]} 62. Kb4 {[%clk 0:00:13]}  Rd4 {[%clk 0:00:03]} 63. Kc5 {[%clk 0:00:14]}  Re4 {[%clk 0:00:02]} 64. Bd5 {[%clk 0:00:14]}  Rf4 {[%clk 0:00:03]} 65. Kd6 {[%clk 0:00:15]}  Kg5 {[%clk 0:00:03]} 66. Bf7 {[%clk 0:00:14]}  h4 {[%clk 0:00:03]} 67. Ra1 {[%clk 0:00:13]}  Rd3+ {[%clk 0:00:04]} 68. Kc5 {[%clk 0:00:12]}  h3 {[%clk 0:00:04]} 69. Rg1+ {[%clk 0:00:10]}  Rg4 {[%clk 0:00:04]} 70. Rh1 {[%clk 0:00:11]}  Kh4 {[%clk 0:00:02]} 71. Be6 {[%clk 0:00:11]}  Rf3 {[%clk 0:00:02]} 72. Kd5 {[%clk 0:00:11]}  Kg3 {[%clk 0:00:01]} 73. Ke5 {[%clk 0:00:12]}  h2 {[%clk 0:00:01]} 74. Bxf5 {[%clk 0:00:10]}  Rg5 {[%clk 0:00:01]} 75. Ke4 {[%clk 0:00:10]}  Rgxf5 {[%clk 0:00:01]} 76. Rc1 {[%clk 0:00:10]}  h1=Q {[%clk 0:00:01]} 77. Rxh1 {[%clk 0:00:09]}  R3f4+ {[%clk 0:00:02]} 78. Ke3 {[%clk 0:00:09]}  Kg2 {[%clk 0:00:03]} 79. Rh8 {[%clk 0:00:09]}  Rf2 {[%clk 0:00:03]} 80. Rg8+ {[%clk 0:00:09]}  Kf1 {[%clk 0:00:03]} 81. Ra8 {[%clk 0:00:10]}  R5f3+ {[%clk 0:00:04]} 82. Ke4 {[%clk 0:00:10]}  Rc3 {[%clk 0:00:04]} 83. Ra1+ {[%clk 0:00:10]}  Kg2 {[%clk 0:00:04]} 84. Ra8 {[%clk 0:00:11]}  Rb2 {[%clk 0:00:04]} 85. Kd4 {[%clk 0:00:11]}  Rf3 {[%clk 0:00:04]} 86. Rg8+ {[%clk 0:00:11]}  Kf2 {[%clk 0:00:04]} 87. Ra8 {[%clk 0:00:12]}  Rb4+ {[%clk 0:00:04]} 88. Kc5 {[%clk 0:00:13]}  Rh4 {[%clk 0:00:05]} 89. Ra2+ {[%clk 0:00:13]}  Kg3 {[%clk 0:00:06]} 90. Ra8 {[%clk 0:00:13]}  Rf5+ {[%clk 0:00:07]} 91. Kd6 {[%clk 0:00:14]}  Rh6+ {[%clk 0:00:07]} 92. Ke7 {[%clk 0:00:15]}  Rb5 {[%clk 0:00:07]} 93. Ra3+ {[%clk 0:00:15]}  Kf4 {[%clk 0:00:07]} 94. Ra4+ {[%clk 0:00:16]}  Ke5 {[%clk 0:00:07]} 95. Kf7 {[%clk 0:00:17]}  Rb7+ {[%clk 0:00:07]} 96. Kg8 {[%clk 0:00:17]}  Rc6 {[%clk 0:00:08]} 97. Ra5+ {[%clk 0:00:17]}  Kd6 {[%clk 0:00:08]} 98. Ra8 {[%clk 0:00:18]}  Kc7 {[%clk 0:00:07]} 99. Ra1 {[%clk 0:00:17]}  Kb8 {[%clk 0:00:07]} 0-1


[Site "https://www.chess.com"]